bitfinex/quotes_BTCUSD_20250711
["timestamp","ask_amount","ask_price","bid_price","bid_amount"]
[1752250365423,0.0342831,116670.0,116640.0,1.05372885]
[1752250365626,0.01714118,116670.0,116650.0,0.00214316]
[1752250365828,0.03428295,116670.0,116650.0,0.00214316]
[1752250366027,0.002,116660.0,116650.0,0.00214316]
[1752250366279,0.003,116660.0,116650.0,0.00214316]
[1752250366402,0.001,116660.0,116650.0,0.00214316]
[1752250366804,0.001,116660.0,116650.0,0.18216879]
[1752250367004,0.001,116660.0,116650.0,1.06835843]
[1752250367235,0.001,116660.0,116650.0,1.21327843]
[1752250367617,0.002,116670.0,116660.0,0.25945329]
[1752250367806,0.001,116670.0,116660.0,1.06788169]
[1752250368009,0.001,116670.0,116660.0,1.06037014]
[1752250368247,0.001,116670.0,116660.0,1.07751316]
[1752250368452,0.00827304,116680.0,116660.0,1.05179852]
[1752250368659,0.36570796,116690.0,116670.0,0.23241272]
[1752250368660,0.37427745,116690.0,116670.0,0.23241272]
[1752250368870,0.37427745,116690.0,116670.0,0.23026993]
[1752250369070,0.1667019,116710.0,116680.0,0.00857044]
[1752250369274,0.33152735,116710.0,116680.0,0.99911817]
[1752250369448,0.06844627,116700.0,116680.0,1.02268616]
[1752250369646,0.06844627,116700.0,116680.0,1.02268623]
[1752250369877,0.002,116690.0,116680.0,0.29968748]
[1752250370082,0.002,116690.0,116680.0,0.08542993]
[1752250370396,0.002,116690.0,116680.0,0.23018993]
[1752250370794,0.002,116690.0,116680.0,0.08542993]
[1752250371009,0.08076861,116690.0,116670.0,0.14476]
[1752250371230,0.0834462,116690.0,116660.0,0.35097477]
[1752250371439,0.07681732,116700.0,116680.0,0.18954964]
[1752250371616,0.00837105,116700.0,116690.0,0.17996393]
[1752250371810,0.00856831,116700.0,116680.0,0.08542993]
[1752250372043,0.07994458,116700.0,116680.0,0.08542993]
[1752250372196,0.0114992,116690.0,116660.0,0.24596029]
[1752250372384,0.09801599,116690.0,116680.0,0.001]
[1752250372584,0.41413028,116690.0,116680.0,0.001]
[1752250372780,0.02571015,116680.0,116660.0,0.08907215]
[1752250372981,0.02864008,116680.0,116660.0,0.08692918]
[1752250373396,0.02006993,116680.0,116660.0,0.08692918]
[1752250374018,0.00857059,116670.0,116660.0,0.08592918]
[1752250374233,0.10051038,116680.0,116660.0,0.08592918]
[1752250374452,0.1518162,116680.0,116660.0,0.08592918]
[1752250374656,0.1422462,116680.0,116660.0,0.08592918]
[1752250374898,0.14324613,116680.0,116660.0,0.09450102]
[1752250375111,0.14324613,116680.0,116660.0,0.2573674]
[1752250375316,0.13567627,116680.0,116660.0,0.2593674]
[1752250375518,0.1442462,116680.0,116660.0,0.08792918]
[1752250375792,0.06723,116680.0,116660.0,0.27651059]
[1752250375994,0.00393,116680.0,116670.0,0.17999478]
[1752250376210,0.00393,116680.0,116660.0,0.27289737]
[1752250376413,0.00393,116680.0,116660.0,0.27289766]
[1752250376834,0.00393,116680.0,116660.0,0.27289773]
[1752250377250,0.00393,116680.0,116660.0,0.28146935]
[1752250377475,0.00393,116680.0,116660.0,0.26432604]
[1752250377841,0.00393,116680.0,116660.0,0.28146935]
[1752250378038,0.001,116680.0,116660.0,0.2900409]
[1752250378245,0.001,116680.0,116660.0,0.29861171]
[1752250378450,0.001,116680.0,116660.0,0.29861179]
[1752250378649,0.001,116680.0,116670.0,0.90513588]
[1752250378879,0.001,116680.0,116670.0,1.15028456]
[1752250379044,0.001,116680.0,116670.0,1.21464456]
[1752250379818,0.001,116680.0,116670.0,1.55464456]
[1752250380042,0.001,116680.0,116670.0,1.66918541]
[1752250380474,0.13244627,116740.0,116710.0,0.19705772]
[1752250380680,0.32382837,116740.0,116720.0,0.14686187]
[1752250380888,0.0171323,116730.0,116720.0,0.14686187]
[1752250381101,0.56220313,116730.0,116710.0,0.23014993]
[1752250381346,0.01713545,116710.0,116680.0,0.21164069]
[1752250381552,0.10120141,116710.0,116690.0,0.08542993]
[1752250381758,0.07137627,116700.0,116690.0,0.14472]
[1752250382043,0.07994458,116700.0,116690.0,0.14472]
[1752250382245,0.2855997,116700.0,116680.0,0.08542993]
[1752250382476,0.15798217,116700.0,116680.0,0.23014993]
[1752250382676,0.02006846,116690.0,116660.0,0.21276563]
[1752250382897,0.05963788,116690.0,116670.0,0.23014993]
[1752250383100,0.05963802,116690.0,116670.0,0.23014993]
[1752250383641,0.63554066,116700.0,116670.0,0.08542993]
[1752250383838,0.09283802,116690.0,116670.0,0.37482993]
[1752250384039,0.08326846,116690.0,116670.0,0.37482993]
[1752250384468,0.07569912,116690.0,116670.0,0.37482993]
[1752250384648,0.08426839,116690.0,116670.0,0.37582993]
[1752250384845,0.04259912,116690.0,116670.0,0.56439479]
[1752250385066,0.05116832,116690.0,116670.0,0.37482993]
[1752250385323,0.05116832,116690.0,116670.0,1.06690401]
[1752250385324,0.005,116690.0,116670.0,1.06690401]
[1752250385545,0.005,116690.0,116680.0,0.7957713]
[1752250385834,0.005,116690.0,116680.0,0.82788869]
[1752250386009,0.005,116690.0,116680.0,0.86108869]
[1752250386632,0.006,116690.0,116680.0,0.96866748]
[1752250387039,0.005,116690.0,116680.0,0.96866748]
[1752250387496,0.007,116690.0,116680.0,0.96866748]
[1752250387702,0.002,116690.0,116680.0,0.96866748]
[1752250388010,0.007,116690.0,116680.0,0.96966748]
[1752250388215,0.007,116690.0,116680.0,1.30966748]
[1752250388688,0.007,116690.0,116680.0,1.20208869]
[1752250388890,0.002,116690.0,116680.0,1.20108869]
[1752250389293,0.00049996,116710.0,116700.0,0.70816497]
[1752250389456,0.00049996,116710.0,116700.0,1.0829549]
[1752250389657,0.00049996,116710.0,116700.0,0.76788886]
[1752250389859,0.00049996,116710.0,116700.0,0.40148953]
[1752250390067,0.00906769,116710.0,116700.0,0.08542993]
[1752250390273,0.06924145,116710.0,116700.0,0.23010993]
[1752250390484,0.01713699,116700.0,116690.0,0.10744562]
[1752250390773,0.08018473,116700.0,116690.0,0.14468]
[1752250391155,0.07918473,116700.0,116690.0,0.14468]
[1752250391361,0.07061627,116700.0,116690.0,0.14468]
[1752250391551,0.06744627,116700.0,116690.0,0.23225235]
[1752250391780,0.07244627,116700.0,116690.0,0.23110993]
[1752250391987,0.005,116700.0,116690.0,0.92215326]
[1752250392103,0.005,116700.0,116690.0,0.94786152]
[1752250393004,0.005,116700.0,116690.0,0.9307229]
[1752250393205,0.005,116700.0,116690.0,0.94886181]
[1752250393406,0.005,116700.0,116690.0,1.05630743]
[1752250393778,0.005,116700.0,116690.0,0.19487555]
[1752250393954,0.005,116700.0,116690.0,0.34808526]
[1752250394169,0.005,116700.0,116690.0,0.3566549]
[1752250394371,0.005,116700.0,116690.0,1.0648367]
[1752250394962,0.005,116700.0,116690.0,1.0965967]
[1752250395760,0.005,116700.0,116690.0,1.1277967]
[1752250396145,0.005,116700.0,116690.0,1.63887603]
[1752250396371,0.005,116700.0,116690.0,1.1278967]
[1752250396575,0.005,116700.0,116690.0,1.02045108]
[1752250397353,0.005,116700.0,116690.0,1.01945108]
[1752250397567,0.00049996,116710.0,116700.0,0.1713796]
[1752250397954,0.00049996,116710.0,116700.0,0.33752455]
[1752250398152,0.2253704,116710.0,116700.0,0.08542993]
[1752250398263,0.25637026,116710.0,116690.0,0.10755462]
[1752250398473,0.06944627,116700.0,116690.0,0.08652993]
[1752250398700,0.06844627,116700.0,116690.0,0.23231235]
[1752250398928,0.06844627,116700.0,116690.0,0.74124926]
[1752250399081,0.06744627,116700.0,116690.0,0.74124926]
[1752250399275,0.13481627,116700.0,116690.0,0.08552993]
[1752250399517,0.32333271,116700.0,116690.0,0.0001]
[1752250399843,0.33190214,116700.0,116690.0,0.14474]
[1752250399988,0.32233361,116700.0,116690.0,0.14474]
[1752250400228,0.31376485,116700.0,116690.0,0.0001]
[1752250400439,0.31376463,116700.0,116690.0,0.0001]
[1752250400641,0.33390214,116700.0,116690.0,0.0011]
[1752250400844,0.66633361,116700.0,116690.0,0.0011]
[1752250401046,0.91090439,116700.0,116690.0,0.0011]
[1752250401249,0.90990439,116700.0,116690.0,0.0011]
[1752250401464,0.90690439,116700.0,116690.0,0.0001]
[1752250401668,0.90890439,116700.0,116690.0,0.0001]
[1752250402011,0.62042819,116700.0,116690.0,0.0011]
[1752250402210,0.61242819,116700.0,116690.0,0.0001]
[1752250402370,0.62142819,116700.0,116690.0,0.0021]
[1752250402556,1.28638372,116700.0,116690.0,0.0021]
[1752250403270,0.77530439,116700.0,116690.0,0.0021]
[1752250403469,1.28438372,116700.0,116690.0,0.0021]
[1752250403694,1.28738372,116700.0,116690.0,0.0021]
[1752250404520,1.31252537,116700.0,116690.0,0.0021]
[1752250404926,0.73299977,116700.0,116690.0,0.0021]
[1752250405723,0.72443101,116700.0,116690.0,0.0021]
[1752250406130,0.71586203,116700.0,116690.0,0.0021]
[1752250406348,0.5907496,116700.0,116690.0,0.0021]
[1752250406536,0.27645557,116700.0,116690.0,0.0021]
[1752250407280,0.62502455,116700.0,116690.0,0.0021]
[1752250407457,0.61645602,116700.0,116690.0,0.0021]
[1752250407716,0.60788704,116700.0,116690.0,0.0021]
[1752250407911,0.41937,116700.0,116690.0,0.0021]
[1752250408084,0.43650685,116700.0,116690.0,0.0021]
[1752250408487,0.60788645,116700.0,116690.0,0.0021]
[1752250408687,0.62502389,116700.0,116690.0,0.0021]
[1752250408897,0.63359287,116700.0,116690.0,0.0021]
[1752250409287,0.62502448,116700.0,116690.0,0.0021]
[1752250409830,0.43650707,116700.0,116690.0,0.0021]
[1752250409975,0.35517,116700.0,116690.0,0.0021]
[1752250410183,0.35517,116700.0,116690.0,0.51317933]
[1752250410184,0.012,116700.0,116690.0,0.51317933]
[1752250410886,0.012,116700.0,116690.0,0.0021]
[1752250411428,0.1833796,116700.0,116690.0,0.00424242]
[1752250411629,0.27405543,116700.0,116690.0,0.0021]
[1752250411829,0.2654866,116700.0,116690.0,0.0021]
[1752250412181,0.26548704,116700.0,116690.0,0.0021]
[1752250414571,0.75004704,116700.0,116690.0,0.0021]
[1752250415307,1.36109715,116700.0,116690.0,0.0021]
[1752250415674,0.87569218,116700.0,116690.0,0.0021]
[1752250415876,0.25885343,116660.0,116650.0,0.10745462]
[1752250416084,0.59345196,116660.0,116650.0,0.10745462]
[1752250416262,1.35837827,116660.0,116650.0,0.09888708]
[1752250418736,0.67782404,116640.0,116620.0,0.51107933]
[1752250418961,0.00857353,116630.0,116610.0,0.59650926]
[1752250419144,0.53855531,116640.0,116610.0,0.78517069]
[1752250419346,0.72617063,116640.0,116610.0,0.59650926]
[1752250419553,0.00857353,116630.0,116610.0,0.60508485]
[1752250419760,0.00957353,116630.0,116620.0,0.00214371]
[1752250419925,0.001,116630.0,116620.0,0.00214371]
[1752250420124,0.54612913,116640.0,116620.0,0.00214371]
[1752250420328,0.002,116630.0,116620.0,0.00214371]
[1752250421166,0.01057346,116630.0,116620.0,0.00214371]
[1752250421450,0.03087074,116630.0,116610.0,0.59950926]
[1752250421722,0.0480186,116630.0,116610.0,0.59950926]
[1752250421893,0.03087067,116630.0,116610.0,0.60508485]
[1752250422110,0.03721334,116630.0,116610.0,0.59650926]
[1752250422315,0.54297922,116640.0,116610.0,0.80232131]
[1752250422515,0.02229714,116630.0,116610.0,0.61366037]
[1752250422642,0.01172346,116630.0,116610.0,0.78517138]
[1752250422874,0.02029699,116630.0,116610.0,0.79374682]
[1752250423078,0.02229699,116630.0,116610.0,0.61366037]
[1752250423273,0.01172346,116630.0,116610.0,0.79374695]
[1752250423474,0.39499634,116640.0,116620.0,0.65563933]
[1752250423877,0.00049965,116640.0,116630.0,0.51107933]
[1752250424056,0.00907245,116640.0,116630.0,0.51107933]
[1752250424300,0.03479201,116640.0,116620.0,0.59650926]
[1752250424504,0.03794187,116640.0,116630.0,0.14456]
[1752250424619,0.03792032,116640.0,116630.0,0.14456]
[1752250424819,0.02934693,116640.0,116620.0,0.60508404]
[1752250425022,0.10904547,116640.0,116620.0,0.14456]
[1752250425320,0.14781878,116640.0,116620.0,0.00214371]
[1752250425527,0.00857346,116630.0,116620.0,0.14670371]
[1752250425725,0.00857346,116630.0,116620.0,0.00214371]
[1752250425726,0.01172353,116630.0,116620.0,0.00214371]
[1752250425926,0.02029721,116630.0,116620.0,0.14456]
[1752250426196,0.02029721,116630.0,116610.0,0.68259107]
[1752250426197,0.01514846,116620.0,116600.0,0.51107933]
[1752250426434,0.08119758,116630.0,116610.0,0.22998993]
[1752250426648,0.09834567,116630.0,116610.0,0.74106926]
[1752250427021,0.09245096,116630.0,116610.0,0.74106926]
[1752250427252,0.09245096,116630.0,116620.0,0.002]
[1752250427747,0.09245103,116630.0,116610.0,0.74106926]
[1752250427956,0.08387647,116630.0,116610.0,0.92215659]
[1752250428155,0.06505045,116630.0,116610.0,0.74206926]
[1752250428303,0.06205045,116630.0,116610.0,0.74206926]
[1752250428743,0.06405045,116630.0,116610.0,0.74206926]
[1752250429056,0.06205045,116630.0,116610.0,0.74206926]
[1752250429294,0.07062449,116630.0,116610.0,0.74106926]
[1752250429466,0.05347655,116630.0,116610.0,0.74106926]
[1752250429644,0.06405045,116630.0,116620.0,0.001]
[1752250430027,0.27590695,116630.0,116620.0,0.001]
[1752250430261,0.42459714,116630.0,116620.0,0.001]
[1752250430431,0.04422346,116630.0,116620.0,0.001]
[1752250430631,0.21443418,116640.0,116620.0,0.51107933]
[1752250430632,0.19063467,116640.0,116620.0,0.51107933]
[1752250430854,0.41183379,116640.0,116630.0,0.51107933]
[1752250431056,0.40328218,116640.0,116620.0,0.51107933]
[1752250431257,0.58332388,116640.0,116620.0,0.51107933]
[1752250431466,0.03355052,116630.0,116620.0,0.14452]
[1752250431615,0.04212456,116630.0,116620.0,0.14452]
[1752250432044,0.02497662,116630.0,116620.0,0.14452]
[1752250432244,0.03087103,116630.0,116610.0,0.59760926]
[1752250432461,0.03087103,116630.0,116620.0,0.14452]
[1752250432667,0.002,116630.0,116620.0,0.65559933]
[1752250433066,0.01057353,116630.0,116620.0,0.65559933]
[1752250433257,0.002,116630.0,116620.0,0.65559933]
[1752250433542,0.03944523,116630.0,116620.0,0.14452]
[1752250433727,0.04144515,116630.0,116620.0,0.14552]
[1752250434066,0.03287111,116630.0,116620.0,0.14552]
[1752250434284,0.02429721,116630.0,116620.0,0.14552]
[1752250434930,0.07442434,116630.0,116620.0,0.001]
[1752250435258,0.11219846,116630.0,116620.0,0.14548]
[1752250435611,0.27510739,116630.0,116620.0,0.14548]
[1752250435810,0.10094545,116630.0,116620.0,0.14548]
[1752250436024,0.09505074,116630.0,116620.0,0.14548]
[1752250436228,0.09805074,116630.0,116620.0,0.14548]
[1752250436586,0.10662478,116630.0,116620.0,0.14558]
[1752250437063,0.27810768,116630.0,116620.0,0.0011]
[1752250437261,0.27542827,116630.0,116620.0,0.14558]
[1752250437561,0.09537169,116630.0,116620.0,0.14558]
[1752250437764,0.08947706,116630.0,116620.0,0.14558]
[1752250437977,0.11259172,116630.0,116620.0,0.0011]
[1752250438185,0.27550058,116630.0,116620.0,0.14558]
[1752250438390,0.27282117,116630.0,116620.0,0.0011]
[1752250438604,0.41726117,116630.0,116620.0,0.0011]
[1752250438757,0.40868735,116630.0,116620.0,0.0011]
[1752250439740,0.49411728,116630.0,116620.0,0.0011]
[1752250440061,0.26798736,116620.0,116610.0,0.0001]
[1752250440260,0.27113736,116620.0,116610.0,0.0001]
[1752250441143,0.09106526,116620.0,116610.0,0.0001]
[1752250441296,0.11089365,116620.0,116610.0,0.0001]
[1752250441508,0.07062964,116620.0,116610.0,0.0001]
[1752250441706,0.04682419,116620.0,116610.0,0.0001]
[1752250441907,0.06665273,116620.0,116610.0,0.0001]
[1752250442129,0.05539853,116620.0,116610.0,0.0001]
[1752250442457,0.00812,116620.0,116610.0,0.0001]
[1752250442766,0.00812,116620.0,116610.0,0.00393389]
[1752250442767,0.003,116620.0,116610.0,0.00393389]
[1752250442983,0.00812,116620.0,116610.0,0.00179]
[1752250443128,0.03384323,116620.0,116610.0,0.0001]
[1752250443330,0.33666697,116620.0,116610.0,0.0001]
[1752250443674,0.4253837,116620.0,116610.0,0.0001]
[1752250444458,0.4233837,116620.0,116610.0,0.0001]
[1752250444923,0.4263837,116620.0,116610.0,0.0001]
[1752250445316,0.04679419,116620.0,116610.0,0.0001]
[1752250445557,0.003,116620.0,116610.0,0.69126672]
[1752250445760,0.002,116620.0,116610.0,0.51217933]
[1752250445963,0.002,116620.0,116610.0,0.95238148]
[1752250446207,0.007,116620.0,116610.0,0.96095655]
[1752250446403,0.002,116620.0,116610.0,0.9695317]
[1752250446580,0.002,116620.0,116610.0,1.05496163]
[1752250446788,0.002,116620.0,116610.0,1.03781156]
[1752250446987,0.002,116620.0,116610.0,1.04638678]
[1752250447195,0.002,116620.0,116610.0,1.04638685]
[1752250447391,0.002,116620.0,116610.0,1.06353722]
[1752250447618,0.002,116620.0,116610.0,1.06353685]
[1752250447792,0.005,116620.0,116610.0,1.06353685]
[1752250448020,0.005,116620.0,116610.0,0.95635723]
[1752250448369,0.005,116620.0,116610.0,0.94778216]
[1752250448542,0.005,116620.0,116610.0,0.93063179]
[1752250448753,0.005,116620.0,116610.0,0.93920694]
[1752250449088,0.005,116620.0,116610.0,0.99936323]
[1752250449736,0.005,116620.0,116610.0,0.99078816]
[1752250449932,0.005,116620.0,116610.0,0.98221301]
[1752250450136,0.005,116620.0,116610.0,0.99936338]
[1752250450286,0.005,116620.0,116610.0,0.99078823]
[1752250450498,0.005,116620.0,116610.0,1.00793845]
[1752250450909,0.005,116620.0,116610.0,1.07459845]
[1752250451279,0.005,116620.0,116610.0,0.98221331]
[1752250451488,0.005,116620.0,116610.0,0.99078853]
[1752250451634,0.005,116620.0,116610.0,0.99936368]
[1752250451826,0.005,116620.0,116610.0,1.00793875]
[1752250452432,0.005,116620.0,116610.0,1.00105368]
[1752250452677,0.005,116620.0,116610.0,1.00962875]
[1752250453078,0.005,116620.0,116610.0,0.9893008]
[1752250453284,0.005,116620.0,116610.0,0.96357536]
[1752250453794,0.005,116620.0,116610.0,0.98072572]
[1752250454298,0.005,116620.0,116610.0,0.95499999]
[1752250454530,0.005,116620.0,116610.0,0.96357551]
[1752250454702,0.005,116620.0,116610.0,0.95499999]
[1752250454905,0.005,116620.0,116610.0,0.96357551]
[1752250455109,0.005,116620.0,116610.0,0.97215095]
[1752250455867,0.005,116620.0,116610.0,0.95499999]
[1752250456016,0.005,116620.0,116610.0,0.79414048]
[1752250456422,0.005,116620.0,116610.0,0.97422794]
[1752250456622,0.005,116620.0,116610.0,1.03161382]
[1752250457792,0.005,116620.0,116610.0,0.99125883]
[1752250458008,0.005,116620.0,116610.0,0.98268346]
[1752250458434,0.005,116620.0,116610.0,0.80259607]
[1752250458664,0.005,116620.0,116610.0,0.96553235]
[1752250458856,0.005,116620.0,116610.0,1.05551823]
[1752250459450,0.005,116620.0,116610.0,1.39551823]
[1752250459759,0.005,116620.0,116610.0,1.40450523]
[1752250460130,1e-08,116620.0,116610.0,1.60761898]
[1752250460327,0.00049965,116640.0,116630.0,0.19720392]
[1752250460545,0.00049965,116640.0,116630.0,1.0518844]
[1752250460746,0.00049965,116640.0,116630.0,1.0529444]
[1752250461192,0.00049965,116640.0,116630.0,1.06113198]
[1752250461728,0.00049965,116640.0,116630.0,1.06213198]
[1752250461943,0.00049965,116640.0,116630.0,1.0226444]
[1752250462117,0.00149965,116640.0,116630.0,1.13043092]
[1752250462326,0.00149965,116640.0,116630.0,1.16409092]
[1752250464389,0.00149965,116640.0,116630.0,1.50409092]
[1752250464799,0.00149965,116640.0,116630.0,1.40453362]
[1752250465217,0.00149965,116640.0,116630.0,1.45453362]
[1752250465846,0.00149965,116640.0,116630.0,0.89187307]
[1752250466052,0.00149965,116640.0,116630.0,1.45453362]
[1752250466435,0.00149965,116640.0,116630.0,1.25937362]
[1752250466640,0.00149965,116640.0,116630.0,0.94843675]
[1752250466841,0.00249965,116640.0,116630.0,1.5130973]
[1752250467042,0.00040603,116640.0,116630.0,1.1089373]
[1752250467375,0.00040603,116640.0,116630.0,1.10070808]
[1752250467809,0.00140603,116640.0,116630.0,1.10270808]
[1752250468929,0.00140603,116640.0,116630.0,0.9950644]
[1752250470694,0.00140603,116640.0,116630.0,1.0277244]
[1752250471988,0.00140603,116640.0,116630.0,1.3980244]
[1752250472502,0.00140603,116640.0,116630.0,2.01068495]
[1752250472659,0.00140603,116640.0,116630.0,1.4480244]
[1752250473029,0.00140603,116640.0,116630.0,2.1637987]
[1752250473253,0.06844627,116680.0,116670.0,0.75979687]
[1752250473464,0.06844627,116680.0,116670.0,0.9908768]
[1752250473866,0.13471627,116700.0,116690.0,0.18853335]
[1752250474064,0.09864627,116700.0,116690.0,0.99772237]
[1752250474271,0.06844627,116700.0,116690.0,0.98915317]
[1752250474473,0.06844627,116700.0,116690.0,0.99772244]
[1752250474700,0.06844627,116700.0,116690.0,1.00629164]
[1752250474912,0.06844627,116700.0,116690.0,0.22938993]
[1752250474913,0.07161627,116700.0,116690.0,0.22938993]
[1752250475173,0.14031627,116700.0,116690.0,0.08742993]
[1752250475380,0.14031627,116700.0,116690.0,0.14592]
[1752250475586,0.14685712,116700.0,116690.0,0.14392]
[1752250476002,0.15285712,116700.0,116690.0,0.14492]
[1752250476962,0.16142543,116700.0,116690.0,0.14492]
[1752250477164,0.15785712,116700.0,116690.0,0.14592]
[1752250477284,0.15994712,116700.0,116690.0,0.14592]
[1752250477699,0.15994712,116700.0,116690.0,0.34471255]
[1752250477700,0.04359,116700.0,116690.0,0.34471255]
[1752250477943,0.01309,116700.0,116690.0,0.33614335]
[1752250478140,0.01126,116700.0,116690.0,0.42914262]
[1752250478391,0.01,116700.0,116690.0,0.99868237]
[1752250478792,0.01,116700.0,116690.0,0.26639393]
[1752250479000,0.01,116700.0,116690.0,0.99860274]
[1752250479113,0.01,116700.0,116690.0,0.85476274]
[1752250479317,0.004,116700.0,116690.0,0.99760274]
[1752250479938,0.13343627,116720.0,116700.0,0.19707661]
[1752250480141,0.14797712,116720.0,116710.0,0.32377301]
[1752250480388,0.14797712,116720.0,116710.0,0.31520492]
[1752250480532,0.14797712,116720.0,116710.0,0.33234104]
[1752250480883,0.03499,116720.0,116710.0,0.34090905]
[1752250481117,0.03499,116720.0,116710.0,0.32377309]
[1752250481321,0.03699,116720.0,116710.0,0.33234118]
[1752250481524,0.00499,116720.0,116710.0,0.99756734]
[1752250481725,0.00299,116720.0,116710.0,0.99756741]
[1752250481859,0.005,116720.0,116710.0,1.00713514]
[1752250482066,0.008,116720.0,116710.0,1.00713514]
[1752250484626,0.008,116720.0,116710.0,0.44616459]
[1752250484858,0.008,116720.0,116710.0,0.44604459]
[1752250485056,0.008,116720.0,116710.0,1.00870514]
[1752250485742,0.008,116720.0,116710.0,1.04106514]
[1752250485953,0.008,116720.0,116710.0,1.07136514]
[1752250486365,0.00779967,116720.0,116710.0,1.07136514]
[1752250487876,0.003,116720.0,116710.0,0.30132459]
[1752250488091,0.006,116720.0,116710.0,1.00866514]
[1752250488338,0.04029,116720.0,116710.0,0.40147485]
[1752250488516,0.04029,116720.0,116710.0,0.42717891]
[1752250488659,0.00899,116720.0,116710.0,0.44431444]
[1752250488858,0.006,116720.0,116710.0,1.00697499]
[1752250489272,0.006,116720.0,116710.0,1.11440756]
[1752250489490,0.003,116720.0,116710.0,1.11440756]
[1752250489663,0.003,116720.0,116710.0,1.14796756]
[1752250489874,0.004,116720.0,116710.0,1.18036756]
[1752250490271,0.004,116720.0,116710.0,0.61770701]
[1752250490575,0.004,116720.0,116710.0,1.18036756]
[1752250490810,0.004,116720.0,116710.0,1.14796756]
[1752250491223,0.004,116720.0,116710.0,1.11440756]
[1752250491791,0.004,116720.0,116710.0,1.18036756]
[1752250492262,0.004,116720.0,116710.0,1.07458499]
[1752250493877,0.004,116720.0,116710.0,1.41458499]
[1752250494053,0.0004,116750.0,116740.0,0.75967868]
[1752250494335,0.00054996,116750.0,116740.0,1.13387861]
[1752250494699,0.00054996,116750.0,116740.0,1.24086663]
[1752250494819,0.00054996,116750.0,116740.0,1.23917663]
[1752250495421,0.00054996,116750.0,116740.0,1.27293663]
[1752250495628,0.064,116780.0,116770.0,0.19696751]
[1752250495835,0.13433627,116790.0,116780.0,0.19695063]
[1752250496036,0.13433627,116790.0,116780.0,1.13204111]
[1752250496258,0.0004,116810.0,116800.0,0.19691692]
[1752250496259,0.0633,116810.0,116800.0,0.19691692]
[1752250496619,0.00090018,116810.0,116800.0,1.1320074]
[1752250497345,0.00090018,116810.0,116800.0,0.56934699]
[1752250497545,0.00389018,116810.0,116800.0,1.11488492]
[1752250497669,0.00389018,116810.0,116800.0,1.12344641]
[1752250497865,0.00090018,116810.0,116800.0,1.14056874]
[1752250498073,0.00090018,116810.0,116800.0,1.14156874]
[1752250498277,0.00090018,116810.0,116800.0,2.12798929]
[1752250498529,0.00090018,116810.0,116800.0,2.18538566]
[1752250498679,0.00090018,116810.0,116800.0,1.21986511]
[1752250498879,0.00090018,116810.0,116800.0,1.36330511]
[1752250499126,0.00090018,116810.0,116800.0,1.21986511]
[1752250499322,0.00090018,116810.0,116800.0,1.36340511]
[1752250499585,0.00090018,116810.0,116800.0,1.36446511]
[1752250500120,0.00090018,116810.0,116800.0,1.47145313]
[1752250500532,0.08983645,116840.0,116820.0,0.18831975]
[1752250500730,0.12924448,116840.0,116830.0,0.1434]
[1752250500946,0.15478806,116840.0,116830.0,0.1434]
[1752250501160,0.33452087,116840.0,116820.0,0.08542993]
[1752250501365,0.063,116830.0,116820.0,0.25663349]
[1752250501593,0.07170803,116840.0,116820.0,0.97121414]
[1752250501798,0.0832663,116840.0,116820.0,0.79245048]
[1752250502038,0.0326,116830.0,116820.0,0.22978993]
[1752250502260,0.0641,116830.0,116820.0,0.22878993]
[1752250502466,0.0641,116830.0,116820.0,0.40855366]
[1752250502630,0.06709,116830.0,116820.0,0.26519366]
[1752250502809,0.06709,116830.0,116820.0,0.22878993]
[1752250503010,0.07109,116830.0,116820.0,0.22978993]
[1752250503213,0.07109,116830.0,116820.0,0.41811347]
[1752250503418,0.0366,116830.0,116820.0,0.98077402]
[1752250503594,0.0366,116830.0,116820.0,0.98929368]
[1752250503808,0.004,116830.0,116820.0,0.98929368]
[1752250504259,0.0039172,116830.0,116820.0,0.98929368]
[1752250505338,0.0039172,116830.0,116820.0,1.33226368]
[1752250505551,0.0039172,116830.0,116820.0,0.79241048]
[1752250505816,0.0039172,116830.0,116820.0,0.08642993]
[1752250505817,0.07676605,116830.0,116820.0,0.08642993]
[1752250505981,0.0682072,116830.0,116820.0,0.14428]
[1752250506231,0.08532512,116830.0,116820.0,0.14428]
[1752250506674,0.0998659,116830.0,116820.0,0.001]
[1752250506897,0.83371586,116830.0,116820.0,0.001]
[1752250507160,0.27105531,116830.0,116820.0,0.001]
[1752250507389,0.27405531,116830.0,116820.0,0.001]
[1752250507647,0.10286597,116830.0,116820.0,0.001]
[1752250507869,0.08574805,116830.0,116820.0,0.76054404]
[1752250508095,0.08574805,116830.0,116820.0,0.56366055]
[1752250508319,0.08574805,116830.0,116820.0,0.74342428]
[1752250508543,0.08574805,116830.0,116820.0,0.17220356]
[1752250508793,0.0712072,116830.0,116820.0,0.28331313]
[1752250509015,0.0712072,116830.0,116820.0,0.27475347]
[1752250509240,0.0712072,116830.0,116820.0,0.28331342]
[1752250509705,0.0712072,116830.0,116820.0,0.29187309]
[1752250509933,0.0712072,116830.0,116820.0,0.85453364]
[1752250510158,0.0069172,116830.0,116820.0,0.85453364]
[1752250510812,0.0100772,116830.0,116820.0,0.28331343]
[1752250511034,0.0732772,116830.0,116820.0,0.27475362]
[1752250511252,0.0420772,116830.0,116820.0,0.30043296]
[1752250511477,0.0389172,116830.0,116820.0,0.30043296]
[1752250511698,0.0747772,116830.0,116820.0,0.2833135]
[1752250511920,0.0747772,116830.0,116820.0,0.29187331]
[1752250512157,0.0389172,116830.0,116820.0,0.3004326]
[1752250512394,0.0069172,116830.0,116820.0,0.86309315]
[1752250513226,0.0069172,116830.0,116820.0,0.80038747]
[1752250514735,0.0069172,116830.0,116820.0,0.80336747]
[1752250514965,0.0069172,116830.0,116820.0,0.83616747]
[1752250516043,0.0069172,116830.0,116820.0,0.86866747]
[1752250516452,0.003,116830.0,116820.0,1.31546906]
[1752250516665,0.00014998,116840.0,116830.0,0.19686635]
[1752250516868,0.00014998,116840.0,116830.0,1.13409683]
[1752250517078,0.00014998,116840.0,116830.0,1.16649683]
[1752250517285,0.00014998,116840.0,116830.0,1.13409683]
[1752250517501,0.00014998,116840.0,116830.0,1.16529683]
[1752250517703,0.00014998,116840.0,116830.0,1.27209842]
[1752250517986,0.00014998,116840.0,116830.0,1.30459842]
[1752250518383,0.00214998,116840.0,116830.0,1.65305587]
[1752250518618,0.00214998,116840.0,116830.0,1.67872648]
[1752250519285,0.0004,116850.0,116840.0,0.79221004]